bitfinex/quotes_SOLUSD_20251031
["timestamp","ask_amount","ask_price","bid_price","bid_amount"]
[1761937146626,3.61670038,186.26,186.2,2.16269743]
[1761937146831,0.71,186.22,186.19,2.16269743]
[1761937147057,4.01855906,186.21,186.19,2.16269743]
[1761937147252,4.01988254,186.2,186.19,2.16269743]
[1761937147455,0.71,186.26,186.19,2.16269743]
[1761937147655,4.01946983,186.25,186.21,18.43961741]
[1761937147960,4.01946983,186.24,186.22,0.71]
[1761937148133,0.71,186.28,186.23,5.36970412]
[1761937148334,4.01891401,186.27,186.23,5.36970412]
[1761937148542,4.01891401,186.26,186.24,0.71]
[1761937148750,0.2,186.29,186.25,2.16269743]
[1761937149058,4.01846495,186.28,186.27,2.16269743]
[1761937149250,4.01846495,186.28,186.26,2.16269743]
[1761937149557,4.01846495,186.27,186.26,2.16269743]
[1761937149936,0.91,186.29,186.26,2.16269743]
[1761937150136,4.0170958,186.28,186.26,2.16269743]
[1761937150448,0.2,186.29,186.28,9.78882769]
[1761937150656,0.2,186.29,186.28,20.74447641]
[1761937150836,0.2,186.3,186.29,10.2153124]
[1761937151032,4.01368363,186.36,186.31,0.14216157]
[1761937151232,0.1,186.37,186.32,11.95152512]
[1761937151647,0.1,186.37,186.32,12.66152512]
[1761937152153,0.1,186.37,186.32,12.80368669]
[1761937152357,0.1,186.37,186.32,18.17079703]
[1761937154743,0.1,186.37,186.32,16.0080996]
[1761937154950,0.1,186.37,186.32,18.17079703]
[1761937155773,0.1,186.37,186.36,9.93098926]
[1761937155943,0.2,186.4,186.36,9.93098926]
[1761937155944,0.2,186.4,186.39,10.07315083]
[1761937156141,0.2,186.46,186.41,0.14216157]
[1761937156370,0.2,186.46,186.43,17.31546869]
[1761937156873,0.2,186.46,186.43,11.95152512]
[1761937157049,0.91,186.46,186.43,2.16269743]
[1761937157369,0.91,186.46,186.43,5.49657037]
[1761937158774,0.86,186.44,186.39,67.16507015]
[1761937159074,0.66,186.43,186.41,5.49657037]
[1761937159873,0.66,186.43,186.42,5.49657037]
[1761937160951,6.15657037,186.43,186.36,20.592]
[1761937161156,6.15657037,186.43,186.35,15.15481409]
[1761937161157,6.15657037,186.43,186.38,5.49657037]
[1761937161473,0.66,186.42,186.38,5.49657037]
[1761937164575,0.66,186.42,186.39,5.49657037]
[1761937164760,0.86,186.44,186.41,5.49657037]
[1761937165266,0.66,186.43,186.41,5.49657037]
[1761937165859,0.2,186.44,186.38,9.78882769]
[1761937166063,0.66,186.43,186.41,5.49657037]
[1761937166478,0.66,186.43,186.4,5.49657037]
[1761937167159,0.2,186.44,186.41,5.49657037]
[1761937167482,0.2,186.44,186.43,5.49657037]
[1761937168986,0.2,186.44,186.42,5.49657037]
[1761937169885,0.86,186.44,186.41,5.49657037]
[1761937170996,0.66,186.43,186.4,61.8]
[1761937171492,0.66,186.43,186.39,10.86164625]
[1761937171903,0.66,186.43,186.39,5.49657037]
[1761937172779,0.66,186.43,186.38,67.29657037]
[1761937172973,5.49657037,186.42,186.37,72.66219746]
[1761937173384,0.66,186.42,186.38,5.49657037]
[1761937173574,0.66,186.42,186.39,5.49657037]
[1761937174004,0.2,186.44,186.41,5.49657037]
[1761937174170,0.2,186.44,186.41,67.29657037]
[1761937174374,0.86,186.44,186.41,67.29657037]
[1761937174779,0.66,186.43,186.41,61.8]
[1761937175997,5.49657037,186.42,186.41,61.8]
[1761937176497,6.15657037,186.42,186.41,61.8]
[1761937176884,6.15657037,186.42,186.36,61.8]
[1761937177082,6.15657037,186.41,186.36,61.8]
[1761937177273,0.66,186.41,186.37,2.16010264]
[1761937177476,0.66,186.4,186.37,2.16010264]
[1761937177698,0.66,186.4,186.36,61.8]
[1761937177699,0.66,186.4,186.36,63.96010264]
[1761937177884,2.82010264,186.4,186.36,61.8]
[1761937178089,2.16010264,186.39,186.34,2.16010264]
[1761937178283,0.66,186.38,186.34,2.16010264]
[1761937178679,2.82010264,186.38,186.33,2.16010264]
[1761937179099,0.66,186.37,186.33,2.16010264]
[1761937179395,0.66,186.37,186.34,2.16010264]
[1761937179886,0.66,186.37,186.32,2.16010264]
[1761937181287,2.16010264,186.36,186.31,61.8]
[1761937181485,2.16010264,186.36,186.3,2.16010264]
[1761937181802,0.66,186.35,186.3,2.16010264]
[1761937182599,2.16010264,186.34,186.29,2.16010264]
[1761937182810,2.82010264,186.35,186.29,2.16010264]
[1761937182988,0.66,186.34,186.3,2.16010264]
[1761937184009,2.82010264,186.34,186.29,2.16010264]
[1761937184512,0.66,186.33,186.29,2.16010264]
[1761937185505,0.66,186.33,186.28,7.52831757]
[1761937185888,0.66,186.33,186.3,2.16010264]
[1761937186284,0.66,186.33,186.29,2.16010264]
[1761937186508,4.64746944,186.33,186.29,2.16010264]
[1761937186906,0.66,186.32,186.29,2.16010264]
[1761937187092,3.98746944,186.33,186.3,2.87010264]
[1761937187413,2.82010264,186.36,186.31,2.16010264]
[1761937187711,4.65050411,186.35,186.31,2.16010264]
[1761937187898,3.99050411,186.34,186.31,2.16010264]
[1761937188205,4.65050411,186.34,186.31,2.16010264]
[1761937188511,0.66,186.34,186.31,2.16010264]
[1761937188897,4.65159468,186.34,186.3,63.96010264]
[1761937189093,6.81169732,186.34,186.3,61.8]
[1761937189317,6.81328711,186.33,186.3,61.8]
[1761937189492,6.15362471,186.32,186.27,61.8]
[1761937189689,3.99371094,186.31,186.27,61.8]
[1761937189909,0.66,186.31,186.27,69.32862628]
[1761937190218,0.66,186.3,186.27,61.8]
[1761937190914,4.65617976,186.3,186.27,61.8]
[1761937191223,0.66,186.29,186.27,61.8]
[1761937191510,0.66,186.32,186.27,61.8]
[1761937191709,4.65845036,186.31,186.27,63.96010264]
[1761937191888,3.99845036,186.3,186.27,63.96010264]
[1761937192094,0.66,186.3,186.27,63.96010264]
[1761937192294,4.00092112,186.29,186.27,63.96010264]
[1761937192613,2.16010264,186.32,186.27,63.96010264]
[1761937192803,4.66092153,186.31,186.27,63.96010264]
[1761937193108,4.00076985,186.3,186.27,63.96010264]
[1761937193287,0.66,186.31,186.27,63.96010264]
[1761937193483,4.00213694,186.3,186.27,63.96010264]
[1761937193692,0.66,186.31,186.27,63.96010264]
[1761937193892,4.00213653,186.3,186.27,61.8]
[1761937194095,4.00213653,186.29,186.27,61.8]
[1761937194305,0.66,186.31,186.27,61.8]
[1761937194587,4.6626388,186.3,186.27,61.8]
[1761937194788,4.00271437,186.29,186.27,61.8]
[1761937194988,0.66,186.3,186.26,63.96010264]
[1761937195412,2.16010264,186.31,186.26,70.02886857]
[1761937195617,4.65290367,186.3,186.26,69.32886857]
[1761937195832,4.00290367,186.29,186.26,69.32886857]
[1761937195996,0.65,186.3,186.26,69.32886857]
[1761937197305,4.65124169,186.3,186.26,69.32886857]
[1761937197492,0.65,186.3,186.26,69.32886857]
[1761937198319,0.65,186.3,186.27,2.16010264]
[1761937198818,0.65,186.3,186.26,63.96010264]
[1761937199233,2.81010264,186.3,186.26,61.8]
[1761937199595,0.65,186.29,186.26,61.8]
[1761937200022,2.81010264,186.29,186.24,2.16010264]
[1761937200231,2.81010264,186.29,186.2,117.12638903]
[1761937200232,2.16010264,186.27,186.2,62.5]
[1761937200402,2.16010264,186.25,186.2,2.16010264]
[1761937200605,2.16010264,186.24,186.19,2.16010264]
[1761937200813,0.65,186.26,186.2,2.16010264]
[1761937200814,2.16010264,186.25,186.2,2.16010264]
[1761937201019,2.16010264,186.23,186.18,2.16010264]
[1761937201222,2.16010264,186.19,186.13,0.7]
[1761937201517,2.16010264,186.17,186.12,2.16010264]
[1761937201732,0.65,186.23,186.16,2.16010264]
[1761937202051,6.81023495,186.23,186.18,2.16010264]
[1761937202207,4.00013231,186.22,186.18,2.16010264]
[1761937202404,4.00013231,186.22,186.14,2.16010264]
[1761937202405,2.16010264,186.2,186.14,2.16010264]
[1761937202811,2.16010264,186.21,186.16,2.16010264]
[1761937203012,0.65,186.22,186.17,2.16010264]
[1761937203253,0.65,186.22,186.15,6.07200139]
[1761937203254,2.16010264,186.21,186.15,2.16010264]
[1761937203549,0.65,186.22,186.12,15.1617054]
[1761937203550,2.16010264,186.19,186.12,15.1617054]
[1761937203722,2.16010264,186.19,186.14,2.16010264]
[1761937203926,0.65,186.19,186.15,2.16010264]
[1761937204237,0.65,186.19,186.16,2.16010264]
[1761937204430,0.65,186.19,186.15,2.16010264]
[1761937204737,2.81010264,186.19,186.14,2.16010264]
[1761937204918,0.65,186.19,186.15,7.53211445]
[1761937205314,0.65,186.19,186.15,8.75503927]
[1761937206026,0.65,186.19,186.15,3.38302746]
[1761937206213,4.03302746,186.19,186.14,3.38302746]
[1761937206416,3.38302746,186.17,186.12,3.38302746]
[1761937206619,4.03302746,186.16,186.11,0.2]
[1761937206941,4.03302746,186.19,186.11,6.273024]
[1761937207136,0.65,186.19,186.16,3.38302746]
[1761937207314,3.38302746,186.2,186.14,3.38302746]
[1761937207520,3.38302746,186.17,186.11,3.58302746]
[1761937207914,0.65,186.16,186.11,3.58302746]
[1761937208530,4.03302746,186.16,186.11,3.58302746]
[1761937208945,0.65,186.15,186.11,3.58302746]
[1761937210332,4.03302746,186.15,186.11,0.2]
[1761937210718,0.65,186.14,186.11,0.2]
[1761937210947,3.38302746,186.15,186.11,0.2]
[1761937211153,3.38302746,186.12,186.11,0.2]
[1761937211519,4.03302746,186.12,186.11,0.2]
[1761937211723,0.65,186.12,186.11,0.2]
[1761937212222,4.03302746,186.12,186.11,0.2]
[1761937212835,29.99790517,186.12,186.11,0.2]
[1761937213229,30.28222831,186.12,186.11,0.2]
[1761937213424,33.66525577,186.12,186.11,0.2]
[1761937213734,33.80741734,186.12,186.11,0.2]
[1761937213925,42.09409336,186.12,186.11,0.2]
[1761937214119,37.78740771,186.12,186.11,0.2]
[1761937214653,34.40438025,186.12,186.11,0.2]
[1761937215334,37.78740771,186.12,186.11,0.2]
[1761937217671,6.45514733,186.26,186.11,5.5731664]
[1761937217855,59.78882769,186.27,186.11,5.5731664]
[1761937217856,4.62360571,186.25,186.11,6.2731664]
[1761937218046,3.97360571,186.24,186.15,3.38302746]
[1761937218245,3.97360571,186.24,186.12,0.66]
[1761937218246,3.38302746,186.21,186.16,3.38302746]
[1761937218572,0.67,186.23,186.16,3.38302746]
[1761937218866,24.84614848,186.26,186.12,4.04302746]
[1761937218867,3.38302746,186.2,186.12,0.66]
[1761937219039,3.38302746,186.18,186.11,0.2]
[1761937219244,3.38302746,186.18,186.12,3.38302746]
[1761937219482,3.38302746,186.18,186.12,8.37957436]
[1761937219483,9.04957436,186.18,186.12,8.37957436]
[1761937220147,9.04957436,186.18,186.11,8.57957436]
[1761937220148,9.04957436,186.17,186.11,8.57957436]
[1761937220348,8.37957436,186.16,186.11,8.57957436]
[1761937220558,9.04957436,186.16,186.11,8.57957436]
[1761937220746,8.37957436,186.17,186.12,8.37957436]
[1761937220940,8.37957436,186.18,186.12,9.03957436]
[1761937221171,8.37957436,186.17,186.12,8.37957436]
[1761937221471,8.37957436,186.17,186.11,0.2]
[1761937221472,8.37957436,186.13,186.11,0.2]
[1761937221651,20.592,186.14,186.11,0.2]
[1761937221854,20.592,186.15,186.11,0.2]
[1761937222069,20.592,186.16,186.12,8.37957436]
[1761937222856,9.04957436,186.15,186.11,0.2]
[1761937223056,8.37957436,186.12,186.11,0.2]
[1761937223460,9.04957436,186.12,186.11,0.2]
[1761937225772,0.67,186.12,186.11,0.2]
[1761937225974,9.04957436,186.12,186.11,0.2]
[1761937227270,14.42245207,186.12,186.11,0.2]
[1761937227450,18.40442314,186.12,186.11,0.2]
[1761937228074,13.03154543,186.12,186.11,0.2]
[1761937228675,9.04957436,186.12,186.11,0.2]
[1761937228864,13.0321408,186.12,186.11,0.2]
[1761937230182,18.40501851,186.12,186.11,0.2]
[1761937230370,18.83150322,186.12,186.11,0.2]
[1761937232277,28.62033091,186.12,186.11,0.2]
[1761937232854,28.62033091,186.12,186.04,0.2]
[1761937232855,20.592,186.09,186.04,0.2]
[1761937233069,8.37957436,186.05,186.04,0.2]
[1761937233393,33.23846394,186.05,186.04,0.2]
[1761937233565,33.90846394,186.05,186.04,0.2]
[1761937234178,39.28336316,186.05,186.04,0.2]
[1761937234513,33.90846394,186.05,186.04,0.2]
[1761937234792,39.28336316,186.05,186.04,0.2]
[1761937235080,18.83352473,186.05,186.04,0.2]
[1761937235871,13.45862551,186.05,186.04,0.2]
[1761937236072,18.83352473,186.05,186.04,0.2]
[1761937236682,20.87632314,186.02,186.01,0.1]
[1761937236861,33.38062551,186.02,186.01,0.1]
[1761937237054,34.05062551,186.02,186.01,0.1]
[1761937238267,39.42639155,186.02,186.01,0.1]
[1761937238901,33.90983748,186.02,186.01,0.1]
[1761937239191,33.62551434,186.02,186.01,0.1]
[1761937239897,33.62551434,186.02,186.01,0.8]
[1761937239898,3.98393998,186.02,186.01,0.8]
[1761937240091,3.98393998,186.04,186.01,0.8]
[1761937240298,3.98393998,186.03,186.01,0.8]
[1761937240478,8.37957436,186.09,186.01,6.17604577]
[1761937240669,8.37957436,186.09,186.04,8.37957436]
[1761937240670,20.592,186.06,186.04,8.37957436]
[1761937240872,12.36352906,186.05,186.01,0.1]
[1761937241193,3.9839547,186.04,186.01,0.8]
[1761937241369,3.9839547,186.04,186.01,6.17593602]
[1761937241691,28.97157436,186.07,186.01,9.17957436]
[1761937242012,3.98616324,186.06,186.02,9.07957436]
[1761937242197,3.98616324,186.05,186.02,9.07957436]
[1761937242487,3.98616324,186.05,186.01,5.47598104]
[1761937242488,3.98616324,186.04,186.01,0.1]
[1761937242697,12.3657376,186.03,186.01,0.1]
[1761937242875,3.98616324,186.02,186.01,0.1]
[1761937244379,3.98616324,186.02,186.01,0.8]
[1761937245187,20.592,186.04,186.01,14.55562941]
[1761937245498,3.99386187,186.03,186.01,6.17605505]
[1761937245688,20.592,186.08,186.02,0.7]
[1761937245901,3.9933897,186.07,186.02,0.7]
[1761937246093,3.9933897,186.06,186.02,0.7]
[1761937246298,3.9933897,186.05,186.02,0.7]
[1761937246504,3.9933897,186.04,186.02,0.7]
[1761937246815,29.64157436,186.08,186.03,8.37957436]
[1761937246993,3.99498059,186.07,186.03,8.37957436]
[1761937247306,3.99498059,186.06,186.03,0.7]
[1761937247622,12.37455495,186.05,186.01,0.1]
[1761937247799,3.99498059,186.04,186.01,9.17957436]
[1761937248002,8.37957436,186.07,186.02,8.37957436]
[1761937248297,3.99608177,186.06,186.03,8.37957436]
[1761937248503,3.99608177,186.05,186.04,0.7]
[1761937249019,3.99608177,186.05,186.04,9.07957436]
[1761937250108,9.04957436,186.11,186.05,5.37489922]
[1761937250313,3.99811231,186.1,186.05,14.45447358]
[1761937250502,3.99811231,186.09,186.05,14.45447358]
[1761937250701,3.99811231,186.08,186.04,8.37957436]
[1761937251012,3.99811231,186.07,186.04,9.07957436]
[1761937251213,3.99811231,186.06,186.05,9.07957436]
[1761937251398,3.99958265,186.06,186.05,9.07957436]
[1761937252294,4.0025773,186.06,186.05,9.07957436]
[1761937252618,4.0025773,186.06,186.05,0.7]
[1761937252796,4.0025773,186.06,186.02,5.37572422]
[1761937253120,4.00265123,186.05,186.03,0.7]
[1761937253417,8.37957436,186.06,186.01,14.555589]
[1761937253592,4.00397416,186.05,186.01,14.555589]
[1761937253796,4.00397416,186.04,186.01,14.555589]
[1761937253993,8.37957436,186.05,186.01,0.1]
[1761937254211,4.00412617,186.04,186.01,0.8]
[1761937254515,20.592,186.05,186.02,0.7]
[1761937254697,4.00531266,186.04,186.02,0.7]
[1761937254898,20.592,186.05,186.01,0.1]
[1761937255121,4.00531307,186.04,186.01,0.8]
[1761937255306,20.592,186.05,186.01,0.8]
[1761937255508,4.00634887,186.04,186.01,0.8]
[1761937255700,20.592,186.05,186.01,0.8]
[1761937256021,13.10592363,186.04,186.01,0.1]
[1761937256200,4.00634927,186.03,186.01,0.1]
[1761937256402,8.37957436,186.04,186.01,0.1]
[1761937256614,4.00726151,186.03,186.01,0.1]
[1761937256821,9.09957436,186.04,186.01,0.1]
[1761937257003,13.10683587,186.03,186.01,0.1]
[1761937257204,9.09957436,186.03,186.01,0.1]
[1761937258219,8.37957436,186.04,186.01,0.1]
[1761937258428,4.00780062,186.03,186.01,0.1]
[1761937259318,8.37957436,186.03,186.01,0.1]
[1761937259526,4.00821387,186.02,186.01,0.1]
[1761937259824,8.37957436,186.03,186.01,0.1]
[1761937260426,12.38743979,186.02,186.01,0.1]
[1761937260610,13.10743979,186.02,186.01,0.1]
[1761937260832,33.69943979,186.02,186.01,0.1]
[1761937261454,33.69943979,186.02,186.01,0.82]
[1761937261455,24.59986543,186.02,186.01,0.82]
[1761937261628,4.00786543,186.02,186.01,0.1]
[1761937261943,21.312,186.06,186.01,0.1]
[1761937262125,13.10682707,186.05,186.01,0.1]
[1761937262326,4.00725271,186.04,186.01,0.1]
[1761937262661,4.00694537,186.03,186.01,0.1]
[1761937262817,9.09957436,186.05,186.01,0.1]
[1761937263016,4.00694578,186.04,186.01,0.1]
[1761937263558,4.72694578,186.03,186.01,0.1]
[1761937263741,13.10652014,186.03,186.01,0.1]
[1761937263911,8.37957436,186.03,186.01,0.1]
[1761937264118,8.37957436,186.04,186.01,0.1]
[1761937264445,4.0084895,186.03,186.01,0.1]
[1761937265422,12.38806386,186.02,186.01,0.1]
[1761937265665,4.0084895,186.02,186.01,0.1]
[1761937266538,13.10806386,186.02,186.01,0.1]
[1761937267423,10.25273314,186.02,186.01,0.1]
[1761937268355,10.25273314,186.02,186.01,0.82]
[1761937268356,4.0084895,186.02,186.01,0.82]
[1761937269023,5.66640521,186.07,186.01,11.72029869]
[1761937269220,4.01613297,186.06,186.01,0.82]
[1761937269548,4.01613297,186.05,186.01,0.82]
[1761937269844,4.01613297,186.04,186.01,0.1]
[1761937270041,4.01613297,186.03,186.01,0.1]
[1761937270256,6.24424364,186.05,186.01,0.1]
[1761937270257,4.01739087,186.02,186.01,0.1]
[1761937272755,4.01739087,186.02,186.01,6.19605505]
[1761937273048,6.24424364,186.07,186.01,11.72029869]
[1761937273236,4.02162986,186.06,186.02,6.24424364]
[1761937273428,26.83624364,186.07,186.02,6.24424364]
[1761937273429,4.02162986,186.05,186.02,0.72]
[1761937273629,4.02162986,186.04,186.01,0.1]
[1761937273831,4.02162986,186.03,186.01,0.1]
[1761937274037,4.02162986,186.02,186.01,0.1]
[1761937275668,10.2658735,186.02,186.01,0.1]
[1761937275843,15.78380111,186.02,186.01,0.1]
[1761937276047,15.92596268,186.02,186.01,0.1]
[1761937277640,16.06812425,186.02,186.01,0.1]
[1761937277958,25.85695194,186.02,186.01,0.1]
[1761937278164,29.48097426,186.02,186.01,0.1]
[1761937278338,35.0052179,186.02,186.01,0.1]
[1761937281840,29.48097426,186.02,186.01,0.1]
[1761937284156,14.31638053,186.02,186.01,0.1]
[1761937284363,9.68803507,186.02,186.01,0.1]
[1761937284657,30.1378735,186.02,186.01,0.1]
[1761937284872,4.02162986,186.02,186.01,0.76]
[1761937287368,4.02162986,186.02,186.01,0.1]
[1761937287550,6.19048257,186.02,186.01,0.1]
[1761937288544,6.85048257,186.02,186.01,0.1]
[1761937289346,10.20695193,186.02,186.01,0.1]
[1761937290374,16.00920268,186.02,186.01,0.1]
[1761937291346,9.97343664,186.02,186.01,0.1]
[1761937291555,4.02162986,186.02,186.01,0.77]
[1761937291951,9.54695193,186.02,186.01,0.1]
[1761937292672,36.60120268,186.02,186.01,0.1]
[1761937292974,31.22543664,186.02,186.01,0.1]
[1761937293486,36.60120268,186.02,186.01,0.1]
[1761937293776,25.15321354,186.02,186.01,0.1]
[1761937294153,34.94204123,186.02,186.01,0.1]
[1761937294368,20.592,186.0,185.99,8.96024849]
[1761937294579,30.13895193,186.0,185.99,8.96024849]
[1761937294884,30.79895193,186.0,185.99,8.96024849]
[1761937295844,36.17529601,186.0,185.99,8.96024849]
[1761937296045,30.64997394,186.0,185.99,8.96024849]
[1761937296255,36.17529601,186.0,185.99,8.96024849]
[1761937297973,39.7944658,186.0,185.99,8.96024849]
[1761937298345,36.17529601,186.0,185.99,8.96024849]
[1761937300683,36.17529601,186.0,185.99,8.96024849]
[1761937301455,30.64997394,186.0,185.99,8.96024849]
[1761937301658,36.17529601,186.0,185.99,8.96024849]
[1761937305980,36.17529601,186.0,185.99,9.63024849]
[1761937305981,4.02162986,186.0,185.99,9.63024849]
[1761937306559,4.02162986,186.0,185.99,8.96024849]
[1761937307187,9.54695193,186.0,185.99,8.96024849]
[1761937308058,4.02162986,186.0,185.99,8.96024849]
[1761937308255,9.54695193,186.0,185.99,8.96024849]
[1761937308565,15.58329601,186.0,185.99,8.96024849]
[1761937308764,16.00978072,186.0,185.99,8.96024849]
[1761937311882,9.54695193,186.0,185.99,8.96024849]
[1761937313592,9.54772889,186.0,185.99,8.96024849]
[1761937313967,14.92407297,186.0,185.99,8.96024849]
[1761937314367,16.01055768,186.0,185.99,8.96024849]
[1761937314988,9.9742136,186.0,185.99,8.96024849]
[1761937315371,10.6842136,186.0,185.99,8.96024849]
[1761937315896,16.06055768,186.0,185.99,8.96024849]
[1761937318690,12.7058873,186.0,185.99,8.96024849]
[1761937319989,26.78505851,186.0,185.99,8.96024849]
[1761937320293,24.61440682,186.0,185.99,8.96024849]
[1761937320498,26.78505851,186.0,185.99,9.68024849]
[1761937321317,26.78505851,186.0,185.99,8.96024849]
[1761937321615,33.2978873,186.0,185.99,8.96024849]
[1761937323604,12.7058873,186.0,185.99,8.96024849]
[1761937324191,33.2978873,186.0,185.99,8.96024849]
[1761937324513,20.592,185.97,185.96,0.1]
[1761937324684,26.78505851,185.97,185.96,0.1]
[1761937325013,50.02020185,185.97,185.96,0.1]
[1761937325308,50.02020185,185.97,185.94,0.1]
[1761937325526,26.44636057,185.95,185.94,0.1]
[1761937325726,34.80599157,185.95,185.94,0.1]
[1761937326505,31.17876739,185.95,185.94,0.1]
[1761937326811,31.17876739,185.95,185.83,5.5812284]
[1761937326812,20.592,185.93,185.83,0.2]
[1761937327154,10.2153124,185.94,185.83,0.2]
[1761937327155,0.42648471,185.88,185.83,0.2]
[1761937327432,4.02240682,185.87,185.83,2.37065169]
[1761937327721,4.02240682,185.86,185.84,2.89065169]
[1761937327922,4.02240682,185.85,185.84,2.17065169]
[1761937328446,4.02240682,185.85,185.83,0.2]
[1761937328588,20.592,185.89,185.84,2.89065169]
[1761937328915,4.0229002,185.88,185.84,2.89065169]
[1761937329143,4.0229002,185.87,185.86,2.17065169]
[1761937329432,4.0229002,185.87,185.86,3.39317747]
[1761937329732,4.0229002,185.87,185.86,9.49357131]
[1761937330307,3.39317747,185.95,185.86,32.73338361]
[1761937330617,4.02058692,185.94,185.9,3.39317747]
[1761937330806,4.02058692,185.93,185.91,3.39317747]
[1761937331015,4.02058692,185.92,185.91,3.39317747]
[1761937331721,4.02058692,185.92,185.91,0.7]
[1761937331920,4.02058692,185.92,185.91,4.72058692]
[1761937332226,4.02058692,185.92,185.91,0.7]
[1761937334028,12.42044004,185.92,185.88,0.7]
[1761937334236,4.02058692,185.91,185.89,0.7]
[1761937334407,4.02058692,185.9,185.89,0.7]
[1761937336019,4.02058692,185.9,185.89,9.09985312]
[1761937336218,4.02058692,185.9,185.89,0.7]
[1761937336420,4.02058692,185.9,185.89,9.09985312]
[1761937336849,4.02058692,185.9,185.89,0.7]
[1761937337213,4.02058692,185.9,185.88,8.39985312]
[1761937337419,4.02058692,185.89,185.87,8.39985312]
[1761937337619,4.02058692,185.88,185.87,8.39985312]
[1761937338548,4.02058692,185.88,185.87,9.09985312]
[1761937338918,4.02058692,185.88,185.87,0.7]
[1761937339116,4.02058692,185.88,185.84,9.10985312]
[1761937339117,24.61258692,185.88,185.84,9.10985312]
[1761937339438,4.02058692,185.87,185.84,9.10985312]
[1761937339613,4.02058692,185.86,185.84,9.10985312]
[1761937339819,4.02058692,185.85,185.84,0.71]
[1761937340323,4.02058692,185.85,185.84,9.10985312]
[1761937342927,20.592,185.9,185.84,14.49082599]
[1761937343127,20.592,185.92,185.89,8.39985312]
[1761937343456,24.61281293,185.91,185.88,8.39985312]
[1761937343644,0.42648471,185.96,185.85,0.71]
[1761937343645,4.02081293,185.9,185.89,0.71]
[1761937343821,4.02081293,185.9,185.89,6.08952552]
[1761937344240,6.08667078,185.99,185.89,6.08952552]
[1761937344445,4.72988666,185.98,185.9,0.71]
[1761937344742,4.01988666,185.97,185.9,0.71]
[1761937344926,4.01988666,185.96,185.94,8.39985312]
[1761937345124,4.01988666,185.95,185.94,8.39985312]
[1761937345331,4.01988666,185.95,185.94,9.08985312]
[1761937345552,4.01988666,185.95,185.94,8.39985312]
[1761937346445,4.01988666,185.95,185.92,0.69]
[1761937346650,4.01988666,185.94,185.93,8.39985312]
[1761937347222,4.01988666,185.94,185.91,8.39985312]
[1761937347424,4.01988666,185.93,185.91,8.39985312]
[1761937347629,4.01988666,185.92,185.91,8.39985312]
[1761937347951,4.01988666,185.92,185.88,5.37975995]
[1761937347952,4.01988666,185.92,185.88,0.69]
[1761937348125,4.01988666,185.91,185.89,8.39985312]
[1761937348326,4.01988666,185.9,185.89,8.39985312]
[1761937348521,4.01988666,185.9,185.88,0.69]
[1761937348522,4.01988666,185.9,185.88,9.08985312]
[1761937348728,4.01988666,185.89,185.88,8.39985312]
[1761937348926,4.01988666,185.89,185.86,8.39985312]
[1761937349122,4.01988666,185.88,185.86,9.08985312]
[1761937349324,20.592,185.9,185.86,9.08985312]
[1761937349325,4.01988666,185.87,185.86,9.08985312]
[1761937349951,4.01988666,185.87,185.85,8.39985312]
[1761937350141,4.01988666,185.86,185.84,9.08985312]
[1761937350339,4.02079769,185.85,185.84,0.69]
[1761937350640,4.02079769,185.85,185.84,8.39985312]
[1761937350856,4.02079769,185.85,185.84,18.18868081]
[1761937351061,20.592,185.9,185.84,18.87868081]
[1761937351226,4.02048062,185.89,185.85,6.07040963]
[1761937351550,4.02048062,185.88,185.85,6.07040963]
[1761937351734,4.02048062,185.87,185.86,0.69]
[1761937352350,4.02048062,185.87,185.86,9.08985312]
[1761937352653,0.68,185.93,185.86,14.46998457]
[1761937352835,4.02104134,185.92,185.9,8.39985312]
[1761937353157,4.02104134,185.91,185.9,8.39985312]
[1761937353941,4.02104134,185.91,185.89,8.39985312]
[1761937354158,4.02104134,185.9,185.89,8.39985312]
[1761937359768,4.02104134,185.9,185.85,8.39985312]
[1761937360061,4.70104134,185.89,185.86,8.39985312]
[1761937360238,4.02104134,185.88,185.86,8.39985312]
[1761937360442,4.02104134,185.87,185.86,8.39985312]